bitfinex-derivatives/quotes_ETHF0:USTF0_20230104
["timestamp","ask_amount","ask_price","bid_price","bid_amount"]
[1672843037558,3.0073,1254.8,1254.7,1.595]
[1672843039756,3.0073,1254.8,1254.6,1.603]
[1672843040182,2.5,1254.7,1254.6,1.603]
[1672843041442,4.095,1254.7,1254.4,1.579]
[1672843041650,3.0073,1254.5,1254.4,1.579]
[1672843044489,5.5073,1254.7,1254.4,1.591]
[1672843044802,5.5073,1254.7,1254.6,1.594]
[1672843045436,3.0073,1254.7,1254.6,1.595]
[1672843045640,3.0073,1254.7,1254.6,3.19]
[1672843046061,3.0073,1254.9,1254.6,3.19]
[1672843046265,3.0073,1254.7,1254.6,1.595]
[1672843046480,2.5,1254.8,1254.6,3.174]
[1672843046684,2.5,1254.8,1254.7,1.595]
[1672843046901,5.5073,1254.8,1254.7,1.595]
[1672843047432,3.0073,1254.8,1254.7,1.595]
[1672843049421,5.37051395,1254.8,1254.7,1.595]
[1672843049631,7.15425444,1254.8,1254.7,1.595]
[1672843050161,4.79104049,1254.8,1254.7,1.595]
[1672843050362,7.15425444,1254.8,1254.7,1.595]
[1672843050578,5.96131744,1254.8,1254.5,1.595]
[1672843050787,4.79121739,1254.6,1254.5,1.595]
[1672843051949,1.78391739,1254.6,1254.5,1.595]
[1672843052674,4.79121739,1254.6,1254.4,1.595]
[1672843052885,1.78391739,1254.5,1254.4,1.591]
[1672843053214,4.16247392,1254.5,1254.4,1.591]
[1672843053635,2.37855653,1254.5,1254.4,1.591]
[1672843054470,5.33257397,1254.5,1254.4,1.591]
[1672843054676,2.95401744,1254.5,1254.4,1.591]
[1672843054890,2.95401744,1254.5,1254.2,1.595]
[1672843055096,4.79085349,1254.3,1254.2,1.595]
[1672843055315,9.6689248,1254.3,1254.2,1.595]
[1672843055517,7.29085349,1254.3,1254.1,4.086]
[1672843055734,9.6689248,1254.3,1254.0,3.095]
[1672843055933,3.0073,1254.1,1254.0,1.595]
[1672843056149,7.29085349,1254.1,1253.9,1.591]
[1672843056677,5.5073,1254.1,1254.0,1.59]
[1672843056890,7.29085349,1254.1,1254.0,1.59]
[1672843057310,7.29085349,1254.1,1253.9,1.591]
[1672843057942,9.6689248,1254.1,1253.9,1.591]
[1672843058261,2.7764,1254.0,1253.7,1.579]
[1672843058459,2.7764,1254.0,1253.6,2.3904551]
[1672843058460,3.0073,1253.8,1253.5,1.579]
[1672843058881,3.0073,1253.8,1253.5,4.079]
[1672843059097,3.0073,1253.6,1253.3,1.582]
[1672843059718,4.5983,1253.6,1253.3,1.584]
[1672843059938,2.5,1253.5,1253.4,2.5]
[1672843060360,2.5,1253.5,1253.3,1.584]
[1672843060561,3.0073,1253.4,1253.3,1.584]
[1672843061194,2.5,1253.5,1253.3,1.584]
[1672843061615,5.5983,1253.6,1253.3,1.584]
[1672843061821,4.0073,1253.6,1253.5,1.584]
[1672843062028,4.0073,1253.6,1253.5,3.084]
[1672843062768,4.0073,1253.6,1253.5,1.584]
[1672843063186,3.0073,1253.6,1253.5,1.584]
[1672843065918,12.5973,1253.6,1253.2,4.081]
[1672843066131,3.0073,1253.4,1253.2,4.081]
[1672843066338,2.5,1253.3,1253.2,4.081]
[1672843066768,3.0073,1253.4,1253.2,4.081]
[1672843068126,3.0073,1253.4,1253.2,1.581]
[1672843069604,3.0073,1253.4,1253.3,1.595]
[1672843069803,3.0073,1253.4,1253.3,4.095]
[1672843073590,4.1887,1253.6,1253.3,4.095]
[1672843073803,6.68590361,1253.8,1253.5,1.579]
[1672843073804,13.5023,1253.8,1253.5,1.579]
[1672843074012,5.5073,1253.8,1253.5,1.579]
[1672843075385,3.0073,1253.8,1253.5,1.579]
[1672843075597,3.0073,1253.8,1253.7,1.59]
[1672843079790,3.0073,1253.8,1253.7,1.595]
[1672843080424,3.0073,1253.8,1253.7,3.095]
[1672843082326,3.0073,1254.0,1253.7,3.095]
[1672843082538,3.0073,1254.0,1253.9,1.595]
[1672843083170,3.0073,1254.0,1253.9,1.582]
[1672843088419,4.19320361,1254.0,1253.9,1.582]
[1672843089053,2.9694571,1254.1,1253.9,1.582]
[1672843089259,2.9694571,1254.1,1254.0,1.595]
[1672843089260,1.18590361,1254.1,1254.0,1.595]
[1672843089475,5.9767571,1254.2,1254.0,1.595]
[1672843089679,2.9694571,1254.2,1254.1,1.595]
[1672843090105,1.18590361,1254.2,1254.1,1.595]
[1672843092223,1.18590361,1254.2,1254.1,3.189]
[1672843095577,5.79085349,1254.2,1254.1,3.189]
[1672843095789,4.79085349,1254.2,1254.1,3.189]
[1672843096829,7.16912357,1254.2,1254.1,3.189]
[1672843097044,7.16912357,1254.2,1254.0,2.5]
[1672843097045,5.38537131,1254.2,1254.0,4.094]
[1672843097257,2.78383681,1254.1,1254.0,4.094]
[1672843097467,5.16190812,1254.1,1254.0,4.094]
[1672843097888,4.16190812,1254.1,1254.0,4.094]
[1672843098099,2.97295476,1254.1,1254.0,4.094]
[1672843098831,1.18911795,1254.1,1254.0,4.094]
[1672843099263,2.97295476,1254.1,1254.0,4.094]
[1672843100312,1.18911795,1254.1,1254.0,4.094]
[1672843100621,2.97295476,1254.1,1254.0,4.094]
[1672843101354,1.78383681,1254.1,1254.0,4.094]
[1672843101778,2.97246562,1254.1,1254.0,4.094]
[1672843102192,1.78383681,1254.1,1254.0,4.094]
[1672843102408,2.97246023,1254.1,1254.0,4.094]
[1672843102611,2.97246023,1254.1,1254.0,1.594]
[1672843102821,1.78383681,1254.1,1254.0,1.594]
[1672843103571,2.37807131,1254.1,1253.8,1.59]
[1672843103792,1.18860287,1253.9,1253.8,1.59]
[1672843104310,3.68860287,1253.9,1253.8,1.59]
[1672843104730,1.18860287,1253.9,1253.8,1.59]
[1672843104938,5.97880717,1254.0,1253.8,1.59]
[1672843105257,1.18860287,1253.9,1253.8,1.59]
[1672843108727,2.97150717,1253.9,1253.8,1.59]
[1672843111557,1.7829043,1253.9,1253.8,1.59]
[1672843111771,2.37807131,1253.9,1253.8,1.584]
[1672843112295,5.33208875,1253.9,1253.8,1.584]
[1672843112508,2.95401744,1253.9,1253.8,1.584]
[1672843115229,5.45401744,1253.9,1253.8,1.584]
[1672843115554,2.95401744,1253.9,1253.8,1.584]
[1672843115866,5.45401744,1253.9,1253.8,1.584]
[1672843116916,2.95401744,1253.9,1253.8,1.584]
[1672843117654,5.45401744,1253.9,1253.8,1.584]
[1672843117864,2.5,1253.9,1253.8,1.584]
[1672843118807,6.04482092,1253.9,1253.8,1.584]
[1672843119016,2.5,1253.9,1253.8,1.584]
[1672843119220,2.5,1253.9,1253.8,1.42449131]
[1672843119436,6.04482092,1253.9,1253.6,4.088]
[1672843119756,8.37350739,1253.7,1253.6,4.088]
[1672843120068,8.37350739,1253.7,1253.6,5.683]
[1672843120695,5.39228106,1253.7,1253.6,5.683]
[1672843122590,5.39228106,1253.7,1253.6,6.86329377]
[1672843122899,5.39228106,1253.7,1253.6,5.683]
[1672843123114,8.37350739,1253.7,1253.6,3.183]
[1672843123321,8.37307156,1253.7,1253.6,3.183]
[1672843123948,8.37307156,1253.7,1253.6,1.595]
[1672843124158,5.39184523,1253.7,1253.6,1.595]
[1672843124377,2.38454523,1253.7,1253.6,1.595]
[1672843124585,2.38454523,1253.7,1253.6,3.095]
[1672843127106,5.36577156,1253.7,1253.6,3.095]
[1672843127527,2.38454523,1253.7,1253.6,1.595]
[1672843127948,2.38454523,1253.7,1253.6,3.095]
[1672843128906,4.17252176,1253.7,1253.6,3.095]
[1672843129111,2.38454523,1253.7,1253.6,3.095]
[1672843130372,5.39184523,1253.7,1253.6,3.095]
[1672843131421,5.39184523,1253.7,1253.6,1.595]
[1672843131942,5.39184523,1253.7,1253.6,3.095]
[1672843133206,2.38454523,1253.7,1253.6,3.095]
[1672843133423,4.17252214,1253.7,1253.6,4.27529377]
[1672843133728,2.38454523,1253.7,1253.6,4.27529377]
[1672843133941,4.17311349,1253.7,1253.6,4.27529377]
[1672843134151,2.38454523,1253.7,1253.6,4.27529377]
[1672843134674,2.38454523,1253.7,1253.6,5.87429377]
[1672843137397,5.36577156,1253.7,1253.6,4.694]
[1672843137613,2.98122633,1253.7,1253.6,4.694]
[1672843137824,5.98852633,1253.7,1253.6,3.194]
[1672843138035,3.0073,1253.7,1253.5,1.587]
[1672843138244,2.98224617,1253.6,1253.5,4.087]
[1672843138871,2.98224617,1253.6,1253.5,1.587]
[1672843138872,5.48224617,1253.6,1253.5,1.587]
[1672843140347,4.089,1253.6,1253.3,4.54073443]
[1672843140662,1.589,1253.4,1253.1,2.98537532]
[1672843140976,5.36690434,1253.2,1253.0,4.58237532]
[1672843141189,2.3852582,1253.1,1253.0,4.58237532]
[1672843141400,5.98891352,1253.1,1252.9,16.67437532]
[1672843141609,2.3850514,1253.0,1252.9,1.19415013]
[1672843142029,4.3850514,1253.0,1252.9,2.98537532]
[1672843142234,2.3850514,1253.0,1252.9,4.58237532]
[1672843142448,2.3850514,1253.0,1252.9,3.38822519]
[1672843142449,1.78938891,1253.0,1252.9,3.38822519]
[1672843142665,1.78938891,1253.0,1252.9,8.27652544]
[1672843143083,1.78939233,1253.0,1252.9,9.47116983]
[1672843143289,6.17444373,1253.0,1252.9,9.47116983]
[1672843143500,4.17444373,1253.0,1252.9,9.47116983]
[1672843143814,4.17444373,1253.0,1252.9,5.88822519]
[1672843144019,4.98037557,1253.0,1252.9,5.28964285]
[1672843144348,2.98037557,1253.0,1252.9,5.28964285]
[1672843144552,1.19098324,1253.0,1252.9,5.28964285]
[1672843145081,2.98037557,1253.0,1252.9,5.28964285]
[1672843145808,2.98037557,1253.0,1252.9,4.097]
[1672843146024,2.98037557,1253.0,1252.9,5.28964285]
[1672843146234,1.19098324,1253.0,1252.9,4.097]
[1672843148646,5.98767557,1253.1,1252.9,4.097]
[1672843149075,4.19828324,1253.1,1252.9,4.097]
[1672843149703,2.0,1253.0,1252.9,1.597]
[1672843149913,3.19098324,1253.0,1252.9,1.597]
[1672843150125,3.19098324,1253.0,1252.8,7.0983]
[1672843150329,2.0,1253.0,1252.8,7.0983]
[1672843151169,3.19098324,1253.0,1252.8,7.0983]
[1672843152223,7.57667557,1253.1,1252.8,7.0983]
[1672843152433,2.0,1253.0,1252.8,7.0983]
[1672843153176,3.19098324,1253.0,1252.8,1.591]
[1672843153387,2.0,1253.0,1252.8,1.591]
[1672843154437,7.57667557,1253.1,1252.8,1.591]
[1672843154753,2.0,1253.0,1252.8,1.591]
[1672843155481,2.77998324,1253.1,1252.8,4.5983]
[1672843155693,3.69098324,1253.2,1253.0,3.182]
[1672843155897,1.19098324,1253.2,1253.1,1.597]
[1672843156112,3.69098324,1253.2,1253.1,4.097]
[1672843156323,1.19098324,1253.2,1253.1,4.097]
[1672843157806,2.98037557,1253.3,1253.1,4.097]
[1672843158116,1.19098324,1253.3,1253.2,1.591]
[1672843158538,2.98037557,1253.4,1253.2,3.187]
[1672843158743,1.19098324,1253.4,1253.3,1.597]
[1672843158950,1.19098324,1253.4,1253.3,4.097]
[1672843161166,5.98767557,1253.5,1253.3,4.097]
[1672843161369,5.98767557,1253.5,1253.4,1.597]
[1672843161893,5.98767557,1253.5,1253.4,3.194]
[1672843162844,1.19098324,1253.5,1253.4,3.194]
[1672843163051,2.98037557,1253.6,1253.4,6.2013]
[1672843163267,2.98037557,1253.6,1253.5,1.597]
[1672843164209,4.28939233,1253.6,1253.5,1.597]
[1672843164419,4.8850514,1253.6,1253.5,1.597]
[1672843164636,4.8850514,1253.6,1253.4,1.597]
[1672843164849,5.97644496,1253.5,1253.4,1.597]
[1672843165056,4.78878698,1253.5,1253.4,1.597]
[1672843165260,5.97639895,1253.5,1253.4,1.597]
[1672843167685,4.78878698,1253.5,1253.4,1.597]
[1672843168314,7.16605628,1253.5,1253.4,1.597]
[1672843169152,7.16597471,1253.5,1253.4,1.597]
[1672843169357,5.38373216,1253.5,1253.4,1.597]
[1672843170420,1.78285771,1253.5,1253.4,1.597]
[1672843173676,4.15928987,1253.5,1253.4,1.597]
[1672843174102,2.37643216,1253.5,1253.4,1.597]
[1672843174310,4.16055764,1253.5,1253.4,1.597]
[1672843174628,2.37643216,1253.5,1253.4,1.597]
[1672843174839,4.16057162,1253.5,1253.4,1.597]
[1672843175680,2.37643216,1253.5,1253.4,1.597]
[1672843179036,5.38373216,1253.5,1253.4,1.597]
[1672843179250,5.98891352,1253.5,1253.4,1.597]
[1672843180718,8.37073285,1253.5,1253.4,1.597]
[1672843180929,5.98891352,1253.5,1253.4,1.597]
[1672843183236,5.36356046,1253.5,1253.4,1.597]
[1672843183452,2.38194694,1253.5,1253.4,1.597]
[1672843184395,5.98891352,1253.5,1253.4,1.597]
[1672843185025,8.13612092,1253.5,1253.2,1.596]
[1672843185235,5.38903446,1253.3,1253.2,1.596]
[1672843185451,6.38903446,1253.3,1253.2,1.596]
[1672843185983,6.38903446,1253.3,1253.2,1.58955167]
[1672843186507,9.36620253,1253.3,1253.2,1.58955167]
[1672843188294,5.5963,1253.3,1253.0,1.596]
[1672843188507,4.1685814,1253.1,1252.9,2.78264285]
[1672843188712,2.97762194,1253.0,1252.9,5.28264285]
[1672843188922,5.47762194,1253.0,1252.9,5.28264285]
[1672843189132,1.19104878,1253.0,1252.9,5.28264285]
[1672843189861,5.47762194,1253.0,1252.9,5.28264285]
[1672843190503,2.97762194,1253.0,1252.9,5.28264285]
[1672843191555,2.97762194,1253.0,1252.9,2.78264285]
[1672843191766,2.97771078,1253.0,1252.9,2.78264285]
[1672843192074,1.19113762,1253.0,1252.9,10.07316804]
[1672843192397,1.19113762,1253.0,1252.9,8.88052519]
[1672843193023,2.97771078,1253.1,1253.0,1.595]
[1672843193234,1.19113762,1253.1,1253.0,6.17471322]
[1672843193655,1.19113762,1253.1,1253.0,6.57862793]
[1672843194185,1.19113762,1253.1,1253.0,16.96274753]
[1672843194397,2.97771078,1253.2,1253.0,16.58667267]
[1672843194709,2.97771078,1253.2,1253.1,9.17026339]
[1672843194909,1.78657316,1253.2,1253.1,9.17026339]
[1672843195641,2.97893101,1253.2,1253.1,9.17026339]
[1672843195858,1.19235785,1253.2,1253.1,16.56960025]
[1672843196282,2.97893101,1253.3,1253.1,17.98388666]
[1672843196483,2.97893101,1253.3,1253.2,4.98460864]
[1672843200276,2.97933709,1253.3,1253.2,4.98460864]
[1672843200486,1.78657316,1253.3,1253.2,4.98460864]
[1672843200906,2.9793031,1253.3,1253.2,4.98460864]
[1672843201214,1.19272994,1253.3,1253.2,5.58230025]
[1672843201426,4.16863439,1253.4,1253.2,19.5727506]
[1672843201427,1.7873031,1253.4,1253.2,19.5727506]
[1672843201632,1.7873031,1253.4,1253.3,21.38159945]
[1672843201633,0.00072994,1253.4,1253.3,21.38159945]
[1672843201843,1.78657316,1253.5,1253.3,21.97971547]
[1672843202051,2.3860535,1253.7,1253.5,2.5]
[1672843202259,1.78954013,1253.6,1253.5,5.48371871]
[1672843202481,1.78954013,1253.6,1253.5,11.68294737]
[1672843203735,1.78954013,1253.6,1253.5,11.68296641]
[1672843203951,2.3860535,1253.6,1253.5,9.89273518]
[1672843205634,5.36862038,1253.6,1253.5,7.1023]
[1672843206157,2.3860535,1253.6,1253.5,4.6023]
[1672843207425,2.3860535,1253.6,1253.5,5.1023]
[1672843208668,1.78854746,1253.6,1253.5,7.89273518]
[1672843208878,1.78854746,1253.6,1253.5,9.68296641]
[1672843209306,1.78854746,1253.6,1253.5,7.89273518]
[1672843209942,4.17460096,1253.6,1253.5,6.6993]
[1672843210779,1.78854746,1253.6,1253.5,6.6993]
[1672843211611,1.78854746,1253.6,1253.5,3.692]
[1672843213096,1.78854746,1253.6,1253.5,4.88543518]
[1672843213294,4.17460096,1253.7,1253.5,6.48243518]
[1672843213613,1.78854746,1253.7,1253.6,7.7913]
[1672843214358,1.78854746,1253.7,1253.6,3.0073]
[1672843214565,4.17460096,1253.8,1253.6,7.7793]
[1672843214773,4.17460096,1253.8,1253.7,3.179]
[1672843216032,1.78854746,1253.8,1253.7,3.179]
[1672843216873,1.78854746,1253.9,1253.8,1.597]
[1672843217078,1.78854746,1253.9,1253.8,7.7973]
[1672843217608,1.78854746,1253.9,1253.8,6.2013]
[1672843218139,1.78854746,1253.9,1253.8,3.193]
[1672843218450,2.3860535,1253.9,1253.8,1.597]
[1672843218652,8.37592038,1253.9,1253.8,1.597]
[1672843218860,6.3933535,1253.9,1253.8,1.597]
[1672843220120,6.98986688,1253.9,1253.8,1.597]
[1672843220547,9.36972924,1253.9,1253.8,1.597]
[1672843222864,6.38716236,1253.9,1253.8,1.597]
[1672843225278,5.38716236,1253.9,1253.8,1.597]
[1672843225495,1.78451524,1253.9,1253.8,3.18]
[1672843225701,4.28451524,1253.9,1253.8,3.18]
[1672843226024,1.78451524,1253.9,1253.8,3.18]
[1672843226651,1.78451524,1253.9,1253.8,6.1873]
[1672843227069,4.1643776,1254.0,1253.8,6.1873]
[1672843227279,4.1643776,1254.0,1253.9,1.597]
[1672843227485,2.37986236,1254.0,1253.9,1.597]
[1672843227693,4.16419267,1254.0,1253.9,1.597]
[1672843228533,2.37986236,1254.0,1253.9,1.597]
[1672843229701,5.36242924,1254.0,1253.9,1.597]
[1672843230224,5.36258596,1254.0,1253.9,1.597]
[1672843230435,2.98256688,1254.0,1253.9,1.597]
[1672843231683,5.36413996,1254.0,1253.9,1.597]
[1672843231893,2.38157308,1254.0,1253.9,1.597]
[1672843232949,5.36413996,1254.0,1253.9,1.597]
[1672843233164,2.38157308,1254.0,1253.9,1.597]
[1672843233685,5.36413996,1254.0,1253.9,1.597]
[1672843233896,2.38157308,1254.0,1253.9,1.597]
[1672843235064,2.38157308,1254.0,1253.8,12.19573518]
[1672843235383,1.78784085,1253.9,1253.8,13.79273518]
[1672843235597,1.78784085,1253.9,1253.8,15.38973518]
[1672843236438,1.78784085,1253.9,1253.8,14.1963]
[1672843236645,4.16941393,1253.9,1253.8,14.1963]
[1672843237264,1.78784085,1253.9,1253.8,14.1963]
[1672843237904,1.78784085,1253.9,1253.8,15.38973518]
[1672843238220,4.16941393,1253.9,1253.8,14.1963]
[1672843238420,4.16941393,1253.9,1253.8,15.38973518]
[1672843238634,4.16941393,1253.9,1253.8,11.0023]
[1672843238851,4.16941393,1253.9,1253.8,14.1953]
[1672843239056,4.16941393,1253.9,1253.8,15.38873518]
[1672843239377,1.78784085,1253.9,1253.8,15.38873518]
[1672843239588,4.16941393,1253.9,1253.8,15.38873518]
[1672843239799,1.78784085,1253.9,1253.8,15.38873518]
[1672843240113,4.16941393,1253.9,1253.8,15.38873518]
[1672843240523,0.00084085,1254.0,1253.8,24.59315421]
[1672843240738,2.98256688,1254.2,1254.0,7.995]
[1672843240944,2.98256688,1254.3,1254.1,15.38736025]
[1672843241161,2.98256688,1254.3,1254.2,5.678]
[1672843242640,5.48256688,1254.4,1254.2,5.678]
[1672843242947,5.48256688,1254.4,1254.2,4.081]
[1672843242948,2.98256688,1254.3,1254.2,4.081]
[1672843243366,5.48256688,1254.4,1254.3,1.597]
[1672843243570,2.98256688,1254.4,1254.3,3.194]
[1672843245160,5.48256688,1254.4,1254.3,3.194]
[1672843247050,5.48256688,1254.4,1254.3,1.597]
[1672843248721,2.5,1254.4,1254.3,1.597]
[1672843248937,7.63382092,1254.4,1254.0,4.097]
[1672843249150,3.0073,1254.2,1254.0,4.097]
[1672843249362,1.0,1254.1,1254.0,1.597]
[1672843251153,2.97783267,1254.3,1254.2,0.5]
[1672843251352,10.08213267,1254.4,1254.2,0.5]
[1672843251565,2.97783267,1254.3,1254.2,0.5]
[1672843251779,8.48513267,1254.4,1254.2,2.082]
[1672843251986,6.65923267,1254.5,1254.3,1.597]
[1672843252198,5.47783267,1254.5,1254.3,1.597]
[1672843253035,2.97783267,1254.5,1254.3,4.6043]
[1672843253458,2.97783267,1254.5,1254.4,1.597]
[1672843254725,5.47783267,1254.5,1254.4,1.597]
[1672843255143,2.97783267,1254.5,1254.4,1.597]
[1672843255349,5.47783267,1254.5,1254.4,1.597]
[1672843255567,2.5,1254.5,1254.3,1.597]
[1672843255879,5.98393762,1254.4,1254.3,1.597]
[1672843256297,2.97663762,1254.4,1254.3,1.597]
[1672843256511,5.98393762,1254.4,1254.3,1.597]
[1672843258927,5.47663762,1254.5,1254.3,1.597]
[1672843260606,2.97663762,1254.4,1254.3,1.597]
[1672843261661,5.47663762,1254.5,1254.3,1.597]
[1672843262298,5.47663762,1254.5,1254.4,1.597]
[1672843263235,2.97663762,1254.5,1254.4,1.597]
[1672843263872,2.97663762,1254.5,1254.3,1.591]
[1672843264085,5.47663762,1254.5,1254.3,1.591]
[1672843264817,2.97663762,1254.5,1254.3,1.591]
[1672843265133,5.47663762,1254.5,1254.3,1.591]
[1672843265341,2.97663762,1254.5,1254.3,1.591]
[1672843265552,2.97663762,1254.5,1254.3,4.5983]
[1672843265970,5.47663762,1254.5,1254.3,1.591]
[1672843266499,2.97663762,1254.5,1254.3,1.591]
[1672843267543,5.47663762,1254.5,1254.3,1.591]
[1672843267753,1.0,1254.4,1254.3,1.591]
[1672843267966,3.97663762,1254.4,1254.3,1.591]
[1672843268168,6.98393762,1254.4,1254.3,1.591]
[1672843268496,6.98598687,1254.4,1254.3,1.591]
[1672843270389,3.97868687,1254.4,1254.3,1.591]
[1672843271020,6.98598687,1254.4,1254.3,1.591]
[1672843271231,5.98598687,1254.4,1254.3,1.591]
[1672843272280,2.97868687,1254.4,1254.3,1.591]
[1672843274169,3.0073,1254.4,1254.3,1.591]
[1672843274691,6.04482092,1254.5,1254.3,1.591]
[1672843274904,2.9817869,1254.4,1254.3,1.591]
[1672843275123,2.38520146,1254.4,1254.3,7.38736025]
[1672843275533,5.36698836,1254.5,1254.3,7.38736025]
[1672843275853,5.36698836,1254.5,1254.4,1.597]
[1672843275854,2.9817869,1254.5,1254.4,1.597]
[1672843276803,13.22927252,1254.6,1254.4,1.597]
[1672843277001,9.05212092,1254.6,1254.4,1.597]
[1672843277950,3.54482092,1254.5,1254.3,1.597]
[1672843278269,2.98342573,1254.4,1254.3,1.597]
[1672843278480,4.0073,1254.4,1254.3,1.597]
[1672843279325,9.14912092,1254.4,1254.2,1.0]
[1672843279531,5.13382092,1254.3,1254.2,1.0]
[1672843279736,7.63382092,1254.3,1254.2,1.0]
[1672843280887,8.2661516,1254.3,1254.2,1.0]
[1672843281103,11.84957103,1254.3,1254.2,1.0]
[1672843281313,10.26057103,1254.3,1254.2,1.0]
[1672843281628,6.08341943,1254.3,1254.2,1.0]
[1672843282360,2.98592097,1254.3,1254.2,3.78906025]
[1672843282569,6.59071943,1254.4,1254.3,1.589]
[1672843282887,6.59071943,1254.4,1254.3,3.186]
[1672843283940,3.58341943,1254.4,1254.3,3.186]
[1672843284251,3.58341943,1254.5,1254.3,7.38536025]
[1672843284462,2.98557179,1254.4,1254.3,5.78836025]
[1672843284675,2.9852921,1254.4,1254.3,7.38536025]
[1672843284886,2.5,1254.4,1254.3,6.1933]
[1672843285096,2.5,1254.4,1254.3,3.186]
[1672843285309,2.98527731,1254.4,1254.3,3.186]
[1672843285513,2.5,1254.4,1254.3,3.186]
[1672843286248,6.08341943,1254.5,1254.3,3.186]
[1672843286461,6.08341943,1254.5,1254.4,1.597]
[1672843287509,6.08250276,1254.5,1254.4,1.597]
[1672843288773,3.58250276,1254.5,1254.4,1.597]
[1672843289183,13.26695436,1254.6,1254.4,1.597]
[1672843289614,3.58250276,1254.5,1254.4,1.597]
[1672843289825,6.08250276,1254.5,1254.4,1.597]
[1672843290982,10.25965436,1254.5,1254.4,1.597]
[1672843291295,6.08250276,1254.5,1254.4,1.597]
[1672843291715,3.58250276,1254.5,1254.4,1.597]
[1672843292971,9.08980276,1254.6,1254.4,1.597]
[1672843293501,2.5,1254.5,1254.4,1.597]
[1672843294231,13.26695436,1254.6,1254.4,1.597]
[1672843294443,9.08980276,1254.6,1254.4,1.597]
[1672843294651,2.5,1254.5,1254.4,1.597]
[1672843295390,6.08250276,1254.5,1254.4,1.597]
[1672843296443,2.5,1254.5,1254.4,1.597]
[1672843296857,6.08250276,1254.5,1254.4,1.597]
[1672843297065,13.26695436,1254.6,1254.4,1.597]
[1672843297281,2.5,1254.5,1254.4,1.597]
[1672843297694,6.08250276,1254.5,1254.4,1.597]
[1672843300335,10.25965436,1254.5,1254.4,1.597]
[1672843300537,11.85365436,1254.5,1254.3,1.589]
[1672843300743,6.58980276,1254.4,1254.3,1.589]
[1672843301064,3.0073,1254.4,1254.3,1.589]
[1672843301803,7.67650276,1254.5,1254.3,2.78106025]
[1672843302537,7.67650276,1254.5,1254.3,1.589]
[1672843302748,5.17650276,1254.5,1254.3,2.78106025]
[1672843302955,2.38849109,1254.4,1254.3,6.39145765]
[1672843303161,2.38849109,1254.4,1254.3,10.36078287]
[1672843304209,2.38849109,1254.4,1254.3,10.3607537]
[1672843304952,2.98568115,1254.6,1254.4,0.59717276]
[1672843305167,2.38752507,1254.6,1254.5,11.9616005]
[1672843305380,2.38752507,1254.7,1254.5,14.08752206]
[1672843305587,2.38752507,1254.7,1254.6,4.98053798]
[1672843305802,2.38752507,1254.7,1254.6,6.1716248]
[1672843306014,2.38752507,1254.7,1254.6,4.98053798]
[1672843306227,5.37320622,1254.8,1254.6,6.17036196]
[1672843306435,5.37320622,1254.8,1254.7,4.6043]
[1672843306639,2.98568115,1254.8,1254.7,4.6043]
[1672843307800,2.98568115,1254.8,1254.7,1.597]
[1672843308532,3.98568115,1254.8,1254.7,1.597]
[1672843309479,1.0,1254.8,1254.7,1.597]
[1672843309684,9.08980276,1254.9,1254.7,1.597]
[1672843309894,1.0,1254.8,1254.7,1.597]
[1672843310427,3.97922552,1254.8,1254.7,1.597]
[1672843311687,2.97922552,1254.8,1254.7,1.597]
[1672843312001,3.97922552,1254.8,1254.7,1.587]
[1672843313260,2.97922552,1254.8,1254.7,1.587]
[1672843313887,3.97922552,1254.8,1254.7,1.587]
[1672843314833,1.0,1254.8,1254.6,1.597]
[1672843315042,3.0073,1254.7,1254.5,1.597]
[1672843315257,2.38282943,1254.6,1254.5,1.597]
[1672843315466,5.36136621,1254.6,1254.5,1.597]
[1672843315884,2.38282943,1254.6,1254.5,1.597]
[1672843320206,2.97853678,1254.6,1254.5,1.597]
[1672843320413,5.36238563,1254.6,1254.5,1.597]
[1672843320618,2.97853678,1254.6,1254.5,1.597]
[1672843321247,6.58980276,1254.7,1254.5,1.597]
[1672843321460,2.7784,1254.6,1254.3,1.597]
[1672843321672,2.98036849,1254.4,1254.3,1.597]
[1672843321877,2.98036849,1254.4,1254.2,5.097]
[1672843322093,4.88430136,1254.3,1254.2,5.097]
[1672843323671,10.87196985,1254.3,1254.2,2.597]
[1672843323879,8.48766849,1254.3,1254.2,2.597]
[1672843325024,2.38386232,1254.3,1254.2,2.597]
[1672843325458,2.38386232,1254.3,1254.2,3.097]
[1672843325983,2.38386232,1254.3,1254.2,1.5]
[1672843330394,2.38386232,1254.4,1254.3,3.193]
[1672843332402,8.37153081,1254.5,1254.3,3.193]
[1672843332613,8.37153081,1254.5,1254.4,1.597]
[1672843333549,5.39116232,1254.5,1254.4,1.597]
[1672843333758,8.37153081,1254.5,1254.4,1.597]
[1672843334181,5.98766849,1254.5,1254.4,1.597]
[1672843337967,2.38278369,1254.5,1254.4,1.597]
[1672843340065,2.38278369,1254.6,1254.5,1.589]
[1672843340276,5.36315218,1254.6,1254.5,3.186]
[1672843340477,2.98036849,1254.6,1254.5,3.186]
[1672843342380,5.48036849,1254.6,1254.5,3.186]
[1672843342585,2.98036849,1254.6,1254.5,3.186]
[1672843343537,2.38300132,1254.6,1254.5,6.2013]
[1672843344899,2.38300132,1254.7,1254.5,8.98812398]
[1672843345104,2.38300132,1254.7,1254.6,3.193]
[1672843345311,2.38300132,1254.8,1254.7,1.597]
[1672843345525,5.36336981,1254.8,1254.7,5.272]
[1672843345739,2.98036849,1254.8,1254.7,5.272]
[1672843345958,2.98036849,1254.8,1254.7,3.69]
[1672843348678,2.98036849,1254.8,1254.7,3.19]
[1672843351316,5.36288284,1255.0,1254.7,12.98383798]